Workbook

Sheet Pricing Calculator
A2: NAVI – THE NEW ENTREPRENEUR'S NAVIGATOR | H2: 💡 Explanation & example
A3: Pricing Calculator – product or service
A4: South Karelia Entrepreneurs | Yrittäjyyden äitiyspakkaus project 2025–2026 | Free tool for entrepreneurs
B6: 1. BASIC INFORMATION | H6: 💡 What does this mean in practice?
B7: Product / service name | C7: Example product | H7: ▸ Product or service name Give a clear name for what you are selling. E.g: 'Haircut', 'Handmade wool hat' or 'Photography package'.
B8: Currency | C8: € | H8: ▸ Currency Use €. No need to change this.
B9: VAT rate | C9: 0.255 | H9: ▸ VAT (Value Added Tax) The standard rate in Finland is 25.5%. Some sectors have lower rates: • Food and restaurants: 14% • Books and newspapers: 10% Check your sector at vero.fi/en.
B10: Target margin % | C10: 0.4 | H10: ▸ Target margin Margin = how much of the selling price remains after covering costs. E.g. 40% means: you sell for €10 → €4 is margin, €6 covers costs. A margin of 35–45% is a good starting point.
B11: Sales volume / month | C11: 50 | H11: ▸ Sales volume per month Estimate how many units / services you will sell per month. Use a conservative estimate to start.
B12: Monthly fixed costs (€) | C12: 500 | H12: ▸ Fixed costs per month Costs that occur every month regardless of how much you sell. E.g: office rent €300 + accountant €80 + phone €30 + insurance €90 = €500
B13: Own labour: hourly rate (€) | C13: 30 | H13: ▸ Your own hourly rate How much is your time worth per hour? E.g. €30/h is a good starting point. ⚠️ Your own work is a real cost — even if you don't draw a salary yet!
B14: Own labour: hours per unit sold | C14: 1 | H14: ▸ Hours per unit How many hours does it take to produce ONE unit or deliver ONE service? E.g: haircut 1h, handmade hat 3h, photo session 2h.
B16: 2. VARIABLE COSTS PER UNIT SOLD | H16: 💡 What does this mean in practice?
B17: Cost item | C17: Quantity | D17: Unit price € | E17: Total € | F17: Notes
B18: Materials / raw materials | C18: 1 | D18: 8 | E18: =C18*D18 -> 8 | H18: ▸ Materials / raw materials All materials and supplies needed per unit. E.g: hair dye €5, yarn €8/hat, paper €2, ingredients €12.
B19: Packaging | C19: 1 | D19: 1.5 | E19: =C19*D19 -> 1.5 | H19: ▸ Packaging Packaging materials per unit. E.g: cardboard box €1, tissue paper €0.20, stickers €0.10.
B20: Payment service / commission | C20: 1 | D20: 0.5 | E20: =C20*D20 -> 0.5 | H20: ▸ Payment service commission Card payment processing fee. E.g: Stripe or iZettle charges approx. 1–1.5% per transaction. €10 sale → €0.10–0.15 to the payment provider.
B21: Delivery / logistics | C21: 1 | D21: 3 | E21: =C21*D21 -> 3 | H21: ▸ Delivery / logistics Shipping costs per unit. E.g: Finnish Post small parcel ≈ €5.90, medium ≈ €7.90. Leave 0 if customers collect in person or service is on-site.
B22: Subcontracting / outsourced work | C22: 0 | D22: 0 | E22: =C22*D22 -> 0 | H22: ▸ Subcontracting If you buy part of the work or product from someone else. E.g: photographer buys image editing €15/image. Leave 0 if you do everything yourself.
B23: Other variable cost | C23: 0 | D23: 0 | E23: =C23*D23 -> 0 | H23: ▸ Other variable cost Any other cost that occurs with every unit sold. E.g: certificate paper €0.30, envelope €0.15, plastic bag €0.20.
B25: Total variable costs / unit | C25: =SUM(E18:E23) -> 13 | H25: Calculated automatically from the figures above.
B26: Own labour cost / unit | C26: =C13*C14 -> 30 | H26: Hourly rate × Hours per unit
B27: Fixed cost allocation / unit | C27: =IF(C11>0,C12/C11,0) -> 10 | H27: Fixed costs ÷ sales volume. E.g: €500 ÷ 50 units = €10/unit
B28: Total cost / unit | C28: =C25+C26+C27 -> 53 | H28: ✅ This is the LOWEST price at which you break even. Your price MUST always be higher than this!
B30: 3. PRICING RESULTS | H30: 💡 What do these numbers mean?
B31: Minimum price excl. VAT (costs covered) | C31: =C28 -> 53 | H31: This is the price at which you break even — no profit but no loss either. Never go below this!
B32: Recommended price excl. VAT at target margin | C32: =IF(C10<1,C28/(1-C10),0) -> 88.33333333 | H32: This price gives you the margin you are aiming for. A good starting point for your price list.
B33: VAT amount | C33: =C32*C9 -> 22.525 | H33: This amount is NOT your money — it must be paid to the tax authority.
B34: Recommended customer price incl. VAT | C34: =C32+C33 -> 110.8583333 | H34: 👉 THIS is the price that appears on your price list or in your online shop.
B35: Margin € / unit | C35: =C32-C28 -> 35.33333333 | H35: How much margin remains from each unit sold after covering all costs.
B36: Margin % | C36: =IF(C32>0,(C32-C28)/C32,0) -> 0.4 | H36: The margin percentage. Compare with competitors and typical figures in your sector.
B37: Monthly revenue excl. VAT | C37: =C32*C11 -> 4416.666667 | H37: Total monthly sales if everything goes according to plan.
B38: Estimated monthly total margin | C38: =C35*C11 -> 1766.666667 | H38: 👉 FROM THIS AMOUNT you still need to pay taxes, loan repayments, your own income and development costs.
B40: 4. COMPARISON: WHAT DO DIFFERENT PRICES MEAN? | H40: 💡 Try different prices!
B41: Customer price incl. VAT | C41: Price excl. VAT | D41: Margin € / unit | E41: Margin % | F41: Monthly margin € | H41: Customer price → Price excl. VAT → Margin € → Margin % → Monthly margin
B42: =C34*0.85 -> 94.22958333 | C42: =B42/(1+$C$9) -> 75.08333333 | D42: =C42-$C$28 -> 22.08333333 | E42: =IF(C42>0,D42/C42,0) -> 0.2941176471 | F42: =D42*$C$11 -> 1104.166667 | H42: −15%
B43: =C34*1 -> 110.8583333 | C43: =B43/(1+$C$9) -> 88.33333333 | D43: =C43-$C$28 -> 35.33333333 | E43: =IF(C43>0,D43/C43,0) -> 0.4 | F43: =D43*$C$11 -> 1766.666667 | H43: ✅ Recommended price
B44: =C34*1.15 -> 127.4870833 | C44: =B44/(1+$C$9) -> 101.5833333 | D44: =C44-$C$28 -> 48.58333333 | E44: =IF(C44>0,D44/C44,0) -> 0.4782608696 | F44: =D44*$C$11 -> 2429.166667 | H44: +15%
B45: =C34*1.3 -> 144.1158333 | C45: =B45/(1+$C$9) -> 114.8333333 | D45: =C45-$C$28 -> 61.83333333 | E45: =IF(C45>0,D45/C45,0) -> 0.5384615385 | F45: =D45*$C$11 -> 3091.666667 | H45: +30%
B46: =C34*1.5 -> 166.2875 | C46: =B46/(1+$C$9) -> 132.5 | D46: =C46-$C$28 -> 79.5 | E46: =IF(C46>0,D46/C46,0) -> 0.6 | F46: =D46*$C$11 -> 3975 | H46: +50% — premium pricing
B48: © South Karelia Entrepreneurs | Yrittäjyyden äitiyspakkaus project 2025–2026 | Free tool – feel free to use and adapt

Sheet Instructions
A2: NAVI – PRICING CALCULATOR INSTRUCTIONS
A3: South Karelia Entrepreneurs | Yrittäjyyden äitiyspakkaus project 2025–2026
A5: HOW TO USE THE PRICING CALCULATOR
B6: What is this calculator for? | C6: Pricing products, services, workshops, events, handicrafts, online shop items, and small service packages.
B7: What do I fill in? | C7: Fill in the salmon-coloured cells: VAT rate, target margin, sales volume, fixed costs, your own work, and variable costs.
B8: Variable costs | C8: Costs that occur for every unit you sell: materials, packaging, payment processing, delivery, subcontracting.
B9: Fixed costs | C9: Costs that occur every month regardless of sales volume: rent, software, marketing, storage, insurance.
B10: Own labour | C10: Always include your own time — it is a real cost even if you are not paying yourself a salary yet.
B11: Margin | C11: Margin is not the same as profit. From the margin you still pay other business costs, taxes, development expenses, and your own livelihood.
B12: VAT | C12: VAT is not your money. The calculator separates the price excl. VAT from the customer-facing price incl. VAT.
B13: Free to adapt | C13: This template is a free tool produced as part of the Yrittäjyyden äitiyspakkaus project. You are welcome to use and modify it freely.
A15: © South Karelia Entrepreneurs | Yrittäjyyden äitiyspakkaus project 2025–2026 | Free tool – feel free to use and adapt

Sheet Examples
A2: NAVI – EXAMPLE PRICING CALCULATIONS
A3: South Karelia Entrepreneurs | Yrittäjyyden äitiyspakkaus project 2025–2026
A5: EXAMPLE PRICING FROM DIFFERENT SECTORS
B6: Example | C6: Costs / unit | D6: Own labour / unit | E6: Fixed cost allocation | F6: Margin % | G6: Price incl. VAT 25.5%
B7: Handicraft product | C7: 12 | D7: 20 | E7: 5 | F7: 0.4 | G7: 77.39
B8: Hourly service | C8: 2 | D8: 45 | E8: 8 | F8: 0.45 | G8: 125.5
B9: Event package | C9: 90 | D9: 120 | E9: 40 | F9: 0.35 | G9: 482.69
B10: Online shop product | C10: 18 | D10: 5 | E10: 3 | F10: 0.38 | G10: 52.63
A12: © South Karelia Entrepreneurs | Yrittäjyyden äitiyspakkaus project 2025–2026 | Free tool – feel free to use and adapt
